Cogmind - Beta 17.1 @@@ ROGUE MODE // 2026.09.23 @ 03:57:37 Player: CL-1C0 Result: Destroyed by Z0-ZSR(j) with Overtuned Pulse Rifle Performance ------------- Evolutions (0) 0 Regions Visited (3) 600 Robots Destroyed (1) 5 Value Destroyed (40) 40 Prototype IDs (3) 60 Alien Tech Used (0) 0 Bonus (5430) 5430 TOTAL SCORE: 6135 Bonus ------- Follower Combat Kills 30 Prayed to X0-1V1 5000 Major X0-1V1 Interference 100 Registered with UFD 300 Cogmind --------- Core Integrity 0/100 Matter 290/700 Energy 1600/1600 System Corruption 0% Temperature Cool (49) Movement Treading (170) Location -7/Scraptown Parts ------- > --- POWER (1) -------- Hybrid Deuterium Engine (fused) > --- PROPULSION (2) --- Armored Treads (fused) Armored Treads (fused) > --- UTILITY (2) ------ Self-contained Transmogrifier X0-1V1's Piety Tracker > --- WEAPON (2) ------- Improved EM Pulse Cannon (fused) Light Assault Rifle > --- INVENTORY (5) ---- Remote Datajack CPS Tube (2) Vortex Trap Vortex Trap Vortex Trap Peak State ------------ > --- POWER ------------ Hybrid Deuterium Engine > --- PROPULSION ------- Armored Treads Armored Treads > --- UTILITY ---------- Self-contained Transmogrifier X0-1V1's Piety Tracker > --- WEAPON ----------- Improved EM Pulse Cannon Light Assault Rifle > --- INVENTORY -------- Remote Datajack CPS Tube Vortex Trap Vortex Trap Vortex Trap [Rating: 38] Favorites ----------- Power Improved Ion Engine Engine Improved Ion Engine Propulsion Light Treads Treads Light Treads Leg Aluminum Leg Wheel Armored Wheel Utility Self-contained Transmogrifier Device Self-contained Transmogrifier Storage High-capacity Storage Unit Protection Power Shielding Weapon Light Assault Rifle Energy Gun EM Pulse Gun Energy Cannon Improved EM Pulse Cannon Ballistic Gun Light Assault Rifle Special Weapon CPS Tube Impact Weapon Mace Build | -11 -10 -10 -7 ------- Run | Yrd Mat Sub Scr Slots Evolved . | . . . . Power . | . . . . Propulsion . | . . . . Utility . | . . . . Weapon . | . . . . Parts Attached 9 | . 6 2 1 Power . | . . . . Engine . | . . . . Core . | . . . . Reactor . | . . . . Propulsion 4 | . 3 1 . Treads 2 | . 2 . . Leg 1 | . . 1 . Wheel 1 | . 1 . . Hover . | . . . . Flight . | . . . . Utility 3 | . 3 . . Device 1 | . 1 . . Storage 1 | . 1 . . Processor . | . . . . Hackware . | . . . . Protection 1 | . 1 . . Artifact . | . . . . Weapon 2 | . . 1 1 Energy Gun . | . . . . Energy Cannon . | . . . . Ballistic Gun 1 | . . 1 . Ballistic Cannon . | . . . . Launcher . | . . . . Special Weapon 1 | . . . 1 Impact Weapon . | . . . . Slashing Weapon . | . . . . Piercing Weapon . | . . . . Special Melee Weapon . | . . . . Unidentified Prototypes 1 | . 1 . . Parts Lost . | . . . . Power . | . . . . Propulsion . | . . . . Utility . | . . . . Weapon . | . . . . Highest Loss Streak . | . . . . To Critical Strikes . | . . . . Average Backups 4 | . 5 4 4 Power . | . 1 1 . Propulsion 1 | . 3 2 . Utility . | . . . . Weapon . | . 1 1 . Tool/Special . | . . . . Unused Backups 7 | . . 3 4 Power . | . . . . Propulsion 1 | . . 1 . Utility 1 | . . . 1 Weapon 3 | . . 2 1 Tool/Special 2 | . . . 2 Average Slot Usage (%) 99 | . 94 100 100 Engine 14 | . 14 14 14 Treads 14 | . 5 27 10 Leg 1 | . 17 . . Wheel 11 | . 5 . 17 Device 25 | . 2 28 28 Storage 1 | . 17 . . Energy Gun 2 | . 14 5 . Energy Cannon 6 | . . . 9 Ballistic Gun 13 | . 14 13 14 Impact Weapon 4 | . . 9 3 Peak Build Rating 38 | . 27 29 38 Average Rating 29 | . 7 28 33 On Entrance 17 | 6 6 27 29 Avg Prop Armor Cover (%) 13 | . 12 . 13 Naked Turns . | . . . . Heaviest Build 54 | 14 54 12 17 Greatest Support 40 | 20 20 40 40 Greatest Overweight (x) 3 | . 3 . 1 Average Overweight (x) . | . 1 . . Largest Inventory Capacity 20 | . 20 5 5 Average Capacity 6 | . 16 5 5 Most Carried 6 | . 6 5 5 Average Carried 4 | . 5 4 4 Final Capacity 8 | 8 5 5 5 Final Carried 6 | 6 5 4 5 Transmogrified Parts 11 | . . 1 10 Integrity Recovered 44 | . . . 44 Class Distribution -------------------- 100% | Mutant Dominant Class ---------------- Mutant | -10/Materials Mutant | -10/Subcaves Mutant | -7/Scraptown Resources | -11 -10 -10 -7 ----------- Run | Yrd Mat Sub Scr Matter Collected 293 | 199 . 94 . Remotely . | . . . . Salvage Created 60 | . . 60 . Parts . | . . . . Haulers Intercepted . | . . . . Recyclers Shooed . | . . . . Parts Field Recycled . | . . . . Retrieved Matter . | . . . . Parts Self-Destructed 4 | . . 4 . Prevented . | . . . . Parts Restored . | . . . . Kills | -11 -10 -10 -7 ------- Run | Yrd Mat Sub Scr Combat Hostiles Destroyed 1 | . . 1 . Classes Destroyed 1 | . . 1 . Subdweller 1 | . . 1 . Best Kill Streak 1 | . . 1 . Combat Bots Only 1 | . . 1 . Max Kills in Single Turn 1 | . . 1 . Gunslinging . | . . . . Exploded . | . . . . Melee . | . . . . Uniques/NPCs Destroyed . | . . . . Combat | -11 -10 -10 -7 -------- Run | Yrd Mat Sub Scr Hostile Shots Fired 32 | . . 7 25 Missed 7 | . . 2 5 Hits 25 | . . 5 20 Projectile 25 | . . 5 20 Critical Strikes 1 | . . . 1 Damage Taken 453 | . . 100 353 Core 103 | . . 26 77 Absorbed by Shields . | . . . . Core Remaining (%) 100 | 100 . . . Volleys Fired 4 | . . 4 . Largest 2 | . . 2 . Hottest 60 | . . 60 . Shots Fired 5 | . . 5 . Gun 5 | . . 5 . Cannon . | . . . . Launcher . | . . . . Special . | . . . . Kinetic 1 | . . 1 . Thermal . | . . . . Explosive . | . . . . Electromagnetic 4 | . . 4 . Robot Hit Streak 5 | . . 5 . Robot Miss Streak . | . . . . Penetration Max . | . . . . Secondary Targets . | . . . . Shots Hit Robots 6 | . . 6 . Core Hits 2 | . . 2 . Critical Kills . | . . . . Critical Parts Destroyed 1 | . . 1 . Critical Strikes 1 | . . 1 . Smash 1 | . . 1 . Melee Attacks 1 | . . 1 . Impact 1 | . . 1 . Slashing . | . . . . Piercing . | . . . . Sneak Attacks . | . . . . Combat Hostiles . | . . . . Follow-up Attacks . | . . . . Damage Inflicted 93 | . . 93 . Guns 55 | . . 55 . Cannons . | . . . . Explosions . | . . . . Melee 38 | . . 38 . Ramming . | . . . . Kinetic 10 | . . 10 . Thermal . | . . . . Explosive . | . . . . Electromagnetic 45 | . . 45 . Impact 38 | . . 38 . Slashing . | . . . . Piercing . | . . . . Highest Corruption . | . . . . Average Corruption . | . . . . Corruption Purged . | . . . . Corruption Blocked . | . . . . Overload Shots . | . . . . Overflow Damage 38 | . . 38 . Projectiles . | . . . . Explosions . | . . . . Melee 38 | . . 38 . Knockbacks 1 | . . 1 . Impact 1 | . . 1 . Kinetic . | . . . . Secondary . | . . . . Self-Inflicted Damage . | . . . . Shots . | . . . . Rammed . | . . . . Targets Rammed . | . . . . Kicked . | . . . . Crushed . | . . . . Highest Temperature 4 | . . . 4 Average Temperature 3 | . . . 3 Received Heat Transfer 181 | . . . 181 Siege Activations . | . . . . Martial Activations . | . . . . Shielding Activations . | . . . . Robots Disrupted . | . . . . Combat Hostiles . | . . . . Robots Corrupted 1 | . . 1 . Combat Hostiles 1 | . . 1 . Parts Fried 3 | . . 3 . Impact Corruptions 1 | . . 1 . Robots Melted . | . . . . Combat Hostiles . | . . . . Parts Melted . | . . . . Heat Transferred . | . . . . Parts Sabotaged . | . . . . Parts Stolen . | . . . . Parts Stripped . | . . . . Power Chain Reactions . | . . . . Alert | -11 -10 -10 -7 ------- Run | Yrd Mat Sub Scr Maximum Alert Level . | . . . . Low Security (%) 100 | . 100 . . Level 1 . | . . . . Level 2 . | . . . . Level 3 . | . . . . Level 4 . | . . . . Level 5 . | . . . . High Security . | . . . . Max Security . | . . . . Peak Influence . | . . . . Initial . | . . . . Average . | . . . . Influence Increases . | . . . . Influence Decreases . | . . . . Squads Dispatched . | . . . . Investigation . | . . . . Extermination . | . . . . Reinforcement . | . . . . Assault . | . . . . Garrison . | . . . . Intercept . | . . . . Searches Triggered . | . . . . Construction Impeded . | . . . . Haulers Reinforced . | . . . . Active Scanning Responses . | . . . . Cargo Convoy Interrupts . | . . . . Stealth | -11 -10 -10 -7 --------- Run | Yrd Mat Sub Scr Distress Signals . | . . . . Communications Jammed . | . . . . Distress Signals . | . . . . Times Spotted 10 | . 1 3 6 Peak Tracking Total 6 | . 1 2 6 Tactical Retreats . | . . . . Traps | -11 -10 -10 -7 ------- Run | Yrd Mat Sub Scr Traps Triggered . | . . . . Indirectly . | . . . . Trap Hack Attempts . | . . . . Triggered . | . . . . Disarmed . | . . . . Reprogrammed . | . . . . Reused . | . . . . Traps Extracted . | . . . . Installed . | . . . . Triggered . | . . . . Most Traps Carried 3 | . . . 3 Machines | -11 -10 -10 -7 ---------- Run | Yrd Mat Sub Scr Machines Disabled . | . . . . Max in Single Turn . | . . . . Machines Repaired . | . . . . Machines Dismantled . | . . . . Machines Sabotaged . | . . . . Overloaded Fab Kills . | . . . . Hacking | -11 -10 -10 -7 --------- Run | Yrd Mat Sub Scr Machines Accessed . | . . . . Terminals . | . . . . Fabricators . | . . . . Repair Stations . | . . . . Recycling Units . | . . . . Scanalyzers . | . . . . Garrison Access . | . . . . Total Hacks . | . . . . Successful . | . . . . Failed . | . . . . Catastrophic . | . . . . Database Lockouts . | . . . . Manual 1 | . 1 . . Terminals . | . . . . Fabricators . | . . . . Repair Stations . | . . . . Recycling Units . | . . . . Scanalyzers . | . . . . Garrison Access . | . . . . Terminal Hacks . | . . . . Fabricator Hacks . | . . . . Repair Station Hacks . | . . . . Recycling Unit Hacks . | . . . . Scanalyzer . | . . . . Garrison Access Hacks . | . . . . Unauthorized Hacks . | . . . . Terminals . | . . . . Fabricators . | . . . . Repair Stations . | . . . . Recycling Units . | . . . . Scanalyzers . | . . . . Garrison Access . | . . . . Data Cores Recovered . | . . . . Used . | . . . . Hacking Detections . | . . . . Full Trace Events . | . . . . Feedback Events . | . . . . Feedback Blocked . | . . . . Robot Schematics Acquired . | . . . . Robots Built . | . . . . Authchips . | . . . . Time . | . . . . Total Robot Build Rating . | . . . . Part Schematics Acquired . | . . . . Parts Built . | . . . . Authchips . | . . . . Time . | . . . . Total Part Build Rating . | . . . . Part Studies Acquired . | . . . . Parts Repaired . | . . . . Time . | . . . . Parts Recycled . | . . . . Recycled Matter . | . . . . Retrieved Matter . | . . . . Retrieved Components . | . . . . Parts Scanalyzed . | . . . . Part Schematics Acquired . | . . . . Parts Damaged . | . . . . Bothacking | -11 -10 -10 -7 ------------ Run | Yrd Mat Sub Scr Used RIF Installer . | . . . . Robots Hacked . | . . . . Non-combat . | . . . . Combat . | . . . . Robot Hacks Applied . | . . . . Relay Couplers Released . | . . . . Fabnet Peak Effective % . | . . . . Robots Rewired . | . . . . Allies Hacked . | . . . . Hacks Repelled . | . . . . Allies | -11 -10 -10 -7 -------- Run | Yrd Mat Sub Scr Total Allies 1 | . . . 1 Largest Group 1 | . . . 1 Highest-Rated Group 464 | . . . 464 Highest-Rated Ally 464 | . . . 464 Total Orders . | . . . . Ally Attacks 4 | . . . 4 Total Damage 236 | . . . 236 Kills 1 | . . . 1 Allies Corrupted . | . . . . Allies Melted . | . . . . X0-1V1 Amusement Gains 24 | . 19 1 4 Average Entertainment 17 | . 38 20 6 Good Acts 6 | . . 5 1 Bad Acts 1 | . . 1 . Intel | -11 -10 -10 -7 ------- Run | Yrd Mat Sub Scr Active Infowar (turns) . | . . . . Robot Analysis Total . | . . . . Derelict Logs Recovered . | . . . . Drone Launches . | . . . . Drone Recoveries . | . . . . Exploration | -11 -10 -10 -7 ------------- Run | Yrd Mat Sub Scr Turns Passed 1087 | . 99 298 690 Spaces Moved 837 | 1 54 151 631 Core . | . . . . Treads 279 | . . 151 128 Legs 34 | 1 33 . . Wheels 524 | . 21 . 503 Hover . | . . . . Flight . | . . . . Fastest Speed 85 | 120 100 160 85 Average Speed 119 | 120 163 160 106 Slowest Speed 260 | 120 260 160 170 Overloaded Moves . | . . . . Propulsion Burnouts . | . . . . Robots Hopped . | . . . . Potential Cave-ins . | . . . . Cave-ins Triggered . | . . . . Exploration Rate (%) 20 | 2 11 14 54 Regions Visited 3 Branch Regions 2 Pre-discovered Areas . | . . . . Known Exits Taken . | . . . . Unknown Exits Taken 3 | 1 1 1 . Scrap Searched 5 | . . 3 2 Spaces Dug . | . . . . Terrain Destroyed . | . . . . Melee . | . . . . Projectile . | . . . . AOE . | . . . . Terrain Rammed . | . . . . Walls Destroyed . | . . . . Machines Disabled . | . . . . Actions | -11 -10 -10 -7 --------- Run | Yrd Mat Sub Scr Total 917 | . 63 201 653 Wait 50 | . 1 38 11 Move 834 | . 53 150 631 Hop . | . . . . Pick Up 7 | . . 2 5 Fast Attach 4 | . 3 . 1 Attach . | . . . . Detach . | . . . . Swap 6 | . 3 3 . Drop 11 | . 3 3 5 Fire 4 | . . 4 . Melee 1 | . . 1 . Ram . | . . . . Kick . | . . . . Crush . | . . . . Escape Stasis . | . . . . Rewire . | . . . . Trap . | . . . . Miscellaneous . | . . . . Route ------- -11/Scrapyard -10/Materials -10/Subcaves (discovered 2 exits: Rec / [*Scr]) -7/Scraptown (discovered 1 exit: [*Fac]) History --------- Turn | Location | Event 1 | -11/Scrapyard | Discovered new exit (range 0) 1 | -11/Scrapyard | Entered Materials 85 | -10/Materials | Discovered new exit (range 6) 93 | -10/Materials | Made a sacrifice at D.C.S.S. Altar Unit 93 | -10/Materials | Forcibly received Sfc. Transmogifier from X0-1V1 100 | -10/Materials | Entered Subcaves 101 | -10/Subcaves | Approached by a straggling Scientist 140 | -10/Subcaves | X0-1V1 activates XOMVISION 140 | -10/Subcaves | Identified exit to Recycling 140 | -10/Subcaves | X0-1V1 revealed exit location to -7/Recycling 192 | -10/Subcaves | Disturbed a concealed Subdweller 301 | -10/Subcaves | Build established: Mutant 398 | -10/Subcaves | Entered Scraptown 626 | -7/Scraptown | Visited Junk Repository 640 | -7/Scraptown | Visited Junk Repository 672 | -7/Scraptown | Discovered new exit (range 7) 733 | -7/Scraptown | Visited UFD Registry 733 | -7/Scraptown | Registered with UFD as "Matterbomber" 776 | -7/Scraptown | Visited Curators Association 790 | -7/Scraptown | Visited Junk Cannon Lab 841 | -7/Scraptown | Visited Abandonware Association 874 | -7/Scraptown | Visited Science Guys 905 | -7/Scraptown | Visited Modified Component R&D 988 | -7/Scraptown | X0-1V1 brought Wyrm Statue to life 988 | -7/Scraptown | Attacked by Scraptown defenders 1083 | -7/Scraptown | Core integrity fell below 50% 1087 | -7/Scraptown | Core integrity fell below 20% 1088 | -7/Scraptown | Destroyed by Z0-ZSR(j) with Overtuned Pulse Rifle Last Messages --------------- 00874_ LOCAL NARROWCAST: Science Guys. The heaviest lifting is done with the mind. 00875_ Dropped Com. Wheel. 00875_ Dropped Mak. Light Armor Plating. 00876_ Dropped Assault Rifle. 00881_ Acquired Vortex Trap. 00905_ LOCAL NARROWCAST: Modified Component R&D. 00980_ Sfc. Transmogrifier converts Lgt. Deuterium Engine into Hyb. Deuterium Engine. 00988_ A towering statue of a majestic wyrm. 00988_ X0-1V1 animates Wyrm Statue. 00988_ ANNOUNCEMENT: Intruder alert! Defend Scraptown! 00989_ DM-LMY(x): "This is not Wyrm! Who would do such a thing? And how?" 00995_ DM-LMY(x) destroyed. 01004_ Sfc. Transmogrifier converts Arm. Wheel into Arm. Treads. 01009_ X0-1V1 causes your matter storage to temporarily balloon in size. (+400 matter capacity) 01011_ Sfc. Transmogrifier converts Arm. Wheel into Arm. Treads. 01088_ Critical hit (Burn: +50). 01088_ X0-1V1 howls with laughter! Map ----- +----------------------------------------------------+ | ??????????????????????????????# #????????????? | | ??????????????????????????????# #????????????? | | ??????????????????????????????? #????????????? | | ??????????????????????????????????? ##????????#### | | ?????????????????????????????????? ?????? | | ????????????????????????????????? ??????? | | ???????????????????????????????? ????????? | | ??????????????????????????????? ?????????? | | ????????????????????????####### ??????????? | | ???????????????????????## ????????????? | | ???????????????????????? ?????????????? | | ?????????????"########### ??????????????? | | ??????????? #?????????????????## # | | ??????????? p #????????????????????? | | ???????????????#"" """###jEj#????????????????????? | | ????????????????????????# l #????????????????????? | | ????????????????????????# ;????????????????????? | | ????????????????????????# #????????????????????? | | ????????????????????????# #????????????????????? | | ????????????????????????# #????????????????????? | | ????????????????????????# #????????????????????? | | ????????????????????????# #????????????????????? | | ????????????????#####???# #????????????????????? | | ????????????????#"""#???# #????????????????????? | | ????????????????#" "#???# #????????????????????? | | ????????????????# #???#@ #????????????????????? | | ????????????????# ##### #????????????????????? | | ????????????????# ##????????????##????"" | | ????????????????# #???????????? | | ????????????????# ##????##???### ##??#"" | | ????????????????##### ### ##????"""??#""" "#????? | | ????????????????????# #?###????"" ""?#""" "#????? | | ???????????????###### ######???"" "?#""" "#????? | | ???????????????#""""" """""#??#" ""##"" "#?#### | | ???????????????#"""%" " "#??#"" ""##"" "#?#""" | | ???????????????#" "#??#"" ""##" "#?#""! | | ???????????????#""""" """""#??#"" ""##"* "#?#""] | | ???##??????????###### ######??#" ""##"" "#?#"" | | ???# ############# #########"" ""##"" ""###""" | | ???# | | ???# | | ????????###"""" """"######"""" """""######""" """# | | ??????????#""" !"""#????#" "#????#"" |"# | | ??????????#""" [%""#????#" ! "#????#" ""# | | ??????????#"""" [ "#????#" % "#????#" ""# | | ??????????#""""" "#????#"""""$ "#????#" | | ??????????#"""""""""#????#""""""""""#????#"""""""# | | ???????????##########????############????######### | | | | | +----------------------------------------------------+ Best States ------------- Heat Dissipation 25 Energy Generation 14 Energy Capacity 1600 Matter Stores 300 Matter Capacity 700 Sight Range 16 Terrain Scan Density 10 Power Shielding 33 Evasion (%) 55 Recoil Reduction 2 Item Schematics ----------------- None Robot Schematics ------------------ None Fabricated ------------ Nothing Repaired ---------- Nothing Studied --------- None Alien Tech Used ----------------- None Achievements -------------- None Challenges ------------ None Game ------ Seed PlatingShadingCharger Manual? 0 Play Time 00:08:57 Cumulative 634.3 hours Start 2026.09.23 @ 03:49:15 End 2026.09.23 @ 03:57:37 Sessions 1 Manual Loads 0 Difficulty Rogue Special Mode None Game No. 753 Rogue 753 Adventurer 0 Explorer 0 Win Type - Total 22 Types 15/0/5/1/0/0/1/0/0/0 Lore% 87 Gallery% 80 Achievement% 68 Wizard Run 0 Options --------- Layout 0 ASCII 0 Keyboard 0 Movement Numpad Keybinds 0 Fullscreen 1 Font 18/SmallcapsGlow Map View 76x50 Zoom Use 0% Tactical HUD 1 Map Filters NONE Filters NONE Steam 1 RUN: f6e329b4-b6fd-4a0d-b803-0531f51410ae